bitfinex-derivatives/quotes_BTCF0:USTF0_20250809
["timestamp","ask_amount","ask_price","bid_price","bid_amount"]
[1754717948947,0.48923967,116940.0,116930.0,0.2046618]
[1754717949146,0.3647,116940.0,116930.0,1.5098218]
[1754717949348,0.3647,116940.0,116930.0,1.1019818]
[1754717949554,0.39791,116940.0,116930.0,1.1019818]
[1754717949944,0.3647,116940.0,116930.0,1.1019818]
[1754717950140,0.3647,116940.0,116930.0,1.6808538]
[1754717950937,0.39791,116940.0,116930.0,1.2730138]
[1754717951347,0.4181,116940.0,116930.0,1.2730138]
[1754717951746,0.9580545,116940.0,116930.0,0.2046618]
[1754717951940,0.9705145,116940.0,116930.0,0.1092518]
[1754717952350,1.03755755,116940.0,116930.0,0.1092518]
[1754717952550,0.61725755,116940.0,116930.0,0.2046618]
[1754717953253,0.62971755,116940.0,116930.0,0.2046618]
[1754717953453,1.03755755,116940.0,116930.0,0.1557218]
[1754717953651,1.03755755,116940.0,116930.0,0.1245718]
[1754717953847,1.03755755,116940.0,116930.0,0.1092518]
[1754717954149,0.61725755,116940.0,116930.0,0.2046618]
[1754717955043,0.50130305,116940.0,116930.0,0.2046618]
[1754717955650,0.51549305,116940.0,116930.0,0.2046618]
[1754717956045,0.15469305,116940.0,116930.0,0.2046618]
[1754717956247,0.51549305,116940.0,116930.0,0.2046618]
[1754717956752,0.3707,116940.0,116930.0,1.5214218]
[1754717957354,0.04311,116940.0,116930.0,1.5214218]
[1754717957652,0.40391,116940.0,116930.0,1.5214218]
[1754717958753,0.3707,116940.0,116930.0,1.5214218]
[1754717959949,0.0099,116940.0,116930.0,1.5214218]
[1754717960150,0.0099,116940.0,116930.0,1.9595538]
[1754717960350,0.3608,116950.0,116940.0,0.2046548]
[1754717960662,0.3608,116950.0,116940.0,0.6124948]
[1754717961150,0.3608,116950.0,116940.0,0.2046548]
[1754717961360,0.07775,116950.0,116940.0,0.2046548]
[1754717961953,0.44355,116950.0,116940.0,0.2046548]
[1754717962653,0.08275,116950.0,116940.0,0.2046548]
[1754717963654,0.08675,116950.0,116940.0,0.2046548]
[1754717963854,0.07256,116950.0,116940.0,0.2046548]
[1754717964863,0.009,116950.0,116940.0,0.2046548]
[1754717965354,0.009,116950.0,116940.0,0.6124948]
[1754717965559,0.04221,116950.0,116940.0,0.6124948]
[1754717966459,0.005,116950.0,116940.0,0.6144948]
[1754717968461,0.005,116950.0,116940.0,0.2066548]
[1754717968956,0.88011,116950.0,116940.0,0.1112448]
[1754717969460,0.88011,116950.0,116940.0,0.2096548]
[1754717969461,0.46727,116950.0,116940.0,0.2096548]
[1754717970063,0.5527675,116950.0,116940.0,0.2096548]
[1754717970265,0.46727,116950.0,116940.0,0.2096548]
[1754717971067,0.46727,116950.0,116940.0,0.6174948]
[1754717971068,0.45481,116950.0,116940.0,0.6174948]
[1754717971260,0.39115,116950.0,116940.0,0.6174948]
[1754717971450,0.36985,116950.0,116940.0,0.6174948]
[1754717972059,0.40306,116950.0,116940.0,0.2096548]
[1754717972359,0.05645,116950.0,116940.0,0.2096548]
[1754717974766,0.09912556,116960.0,116950.0,0.2046475]
[1754717974957,0.09912556,116960.0,116950.0,1.5047675]
[1754717975161,0.00905,116960.0,116950.0,1.5047675]
[1754717975459,0.39465,116970.0,116960.0,0.2046402]
[1754717975664,0.39465,116970.0,116960.0,0.6124802]
[1754717976058,0.3643,116970.0,116960.0,0.6124802]
[1754717976251,0.0035,116970.0,116960.0,0.6124802]
[1754717976860,0.0035,116970.0,116960.0,0.2046402]
[1754717977062,0.03738,116970.0,116960.0,0.2046402]
[1754717977860,0.06012,116970.0,116960.0,0.2046402]
[1754717978266,0.08296,116970.0,116960.0,0.2046402]
[1754717984970,1e-07,116970.0,116960.0,0.6124802]
[1754717985377,0.46466102,116980.0,116970.0,0.206473]
[1754717985677,0.46466102,116980.0,116970.0,1.499353]
[1754717986276,0.46466102,116980.0,116970.0,1.091513]
[1754717986577,0.48740102,116980.0,116970.0,1.091513]
[1754717986769,0.43078102,116980.0,116970.0,1.43907534]
[1754717987177,0.43278102,116980.0,116970.0,1.43907534]
[1754717987470,0.07198102,116980.0,116970.0,1.43907534]
[1754717987780,0.002,116980.0,116970.0,1.43907534]
[1754717988776,0.002,116980.0,116970.0,1.79987534]
[1754717988984,0.002,116980.0,116970.0,1.43907534]
[1754717989178,0.002,116980.0,116970.0,1.091513]
[1754717989377,0.002,116980.0,116970.0,1.43907534]
[1754717989582,0.002,116980.0,116970.0,1.091513]
[1754717989784,0.002,116980.0,116970.0,1.43907534]
[1754717991778,0.002,116980.0,116970.0,1.091513]
[1754717992087,0.002,116980.0,116970.0,1.43907534]
[1754717992779,0.81788234,116980.0,116970.0,1.086073]
[1754717993182,0.47032,116980.0,116970.0,1.086073]
[1754717993879,0.45786,116980.0,116970.0,1.43363534]
[1754717994281,0.45786,116980.0,116970.0,1.086073]
[1754717994477,0.45786,116980.0,116970.0,1.43363534]
[1754717996091,0.90335824,116980.0,116970.0,1.084313]
[1754717996590,0.5557959,116980.0,116970.0,1.084313]
[1754717996989,0.47032,116980.0,116970.0,1.084313]
[1754717997190,0.5557959,116980.0,116970.0,1.084313]
[1754717998693,0.5433359,116980.0,116970.0,1.084313]
[1754717998880,0.90335824,116980.0,116970.0,1.084313]
[1754717999280,0.90335824,116980.0,116970.0,1.081993]
[1754718000293,0.90335824,116980.0,116970.0,0.085483]
[1754718000493,0.98884659,116980.0,116970.0,0.085483]
[1754718000692,0.98884659,116980.0,116970.0,0.110183]
[1754718001089,0.98884659,116980.0,116970.0,0.085483]
[1754718001594,0.1930032,116970.0,116960.0,0.2811662]
[1754718001784,0.90136554,116970.0,116960.0,0.2811662]
[1754718001985,0.5538032,116970.0,116960.0,0.2811662]
[1754718002186,0.90136554,116970.0,116960.0,0.2811662]
[1754718003495,0.5538032,116970.0,116960.0,0.2811662]
[1754718003998,0.90136554,116970.0,116960.0,0.3317762]
[1754718004590,0.5538032,116970.0,116960.0,0.3317762]
[1754718004893,0.90136554,116970.0,116960.0,0.3317762]
[1754718005297,0.90136554,116970.0,116960.0,0.2977862]
[1754718005700,0.90136554,116970.0,116960.0,0.2811662]
[1754718006002,0.5538032,116970.0,116960.0,0.2811662]
[1754718006205,0.90136554,116970.0,116960.0,0.2811662]
[1754718006998,0.5538032,116970.0,116960.0,0.195736]
[1754718007201,0.90136554,116970.0,116960.0,0.195736]
[1754718007896,0.9868612,116970.0,116960.0,0.170976]
[1754718008092,0.1917305,116960.0,116950.0,1.29925518]
[1754718008292,0.90009284,116960.0,116950.0,1.2383868]
[1754718008586,0.90009284,116960.0,116950.0,0.3667468]
[1754718008990,0.5525305,116960.0,116950.0,0.3832368]
[1754718009200,0.90009284,116960.0,116950.0,0.4644268]
[1754718009601,0.90009284,116960.0,116950.0,0.4664268]
[1754718009792,0.5525305,116960.0,116950.0,0.4664268]
[1754718009995,0.90009284,116960.0,116950.0,0.4664268]
[1754718010501,1.33315815,116960.0,116950.0,0.1132567]
[1754718010897,0.98559581,116960.0,116950.0,0.1132567]
[1754718013505,0.98559581,116960.0,116950.0,0.0884967]
[1754718013706,0.63803347,116960.0,116950.0,0.1132567]
[1754718014210,0.98559581,116960.0,116950.0,0.1132567]
[1754718014600,1.86003581,116960.0,116950.0,0.1132567]
[1754718016105,1.84757581,116960.0,116950.0,0.1132567]
[1754718016295,1.86003581,116960.0,116950.0,0.1297467]
[1754718017007,0.98559581,116960.0,116950.0,0.1297467]
[1754718017402,0.98559581,116960.0,116950.0,0.1132578]
[1754718018004,0.63803347,116960.0,116950.0,0.1132578]
[1754718018208,0.98559581,116960.0,116950.0,0.1132578]
[1754718019306,0.63803347,116960.0,116950.0,0.1297478]
[1754718019507,0.98559581,116960.0,116950.0,0.1645078]
[1754718020014,0.98559581,116960.0,116950.0,0.1297478]
[1754718020205,0.98559581,116960.0,116950.0,0.0884978]
[1754718020602,0.98559581,116960.0,116950.0,0.1132578]
[1754718021213,0.98559581,116960.0,116950.0,0.1122578]
[1754718021412,0.98559581,116960.0,116950.0,0.1102578]
[1754718024312,0.98559581,116960.0,116950.0,0.2069378]
[1754718024506,0.98559581,116960.0,116950.0,0.1267478]
[1754718024707,1.33315815,116960.0,116950.0,0.0854978]
[1754718024913,0.98559581,116960.0,116950.0,0.0854978]
[1754718025117,0.98559581,116960.0,116950.0,0.1102578]
[1754718025704,0.63803347,116960.0,116950.0,0.1102578]
[1754718025909,0.98559581,116960.0,116950.0,0.1102578]
[1754718028212,0.63803347,116960.0,116950.0,0.1102578]
[1754718028517,0.98559581,116960.0,116950.0,0.1102578]
[1754718029108,0.97313581,116960.0,116950.0,0.1582778]
[1754718029314,0.97313581,116960.0,116950.0,0.2069378]
[1754718029614,0.98559581,116960.0,116950.0,0.1930378]
[1754718029816,0.98559581,116960.0,116950.0,0.1267478]
[1754718031122,0.98559581,116960.0,116950.0,0.1615078]
[1754718031422,0.98559581,116960.0,116950.0,0.2069378]
[1754718031720,0.98559581,116960.0,116950.0,0.1930378]
[1754718032222,0.63803347,116960.0,116950.0,0.1930378]
[1754718032526,0.98559581,116960.0,116950.0,0.1930378]
[1754718032710,0.44072,116960.0,116950.0,0.54060014]
[1754718033023,0.36989,116960.0,116950.0,0.2069378]
[1754718033314,0.42452,116960.0,116950.0,0.55450014]
[1754718033520,0.43838,116960.0,116950.0,0.55450014]
[1754718034615,0.43838,116960.0,116950.0,0.2069378]
[1754718034816,0.43838,116960.0,116950.0,0.55450014]
[1754718035821,0.42452,116960.0,116950.0,0.55450014]
[1754718036319,0.42452,116960.0,116950.0,0.55550014]
[1754718036521,0.36989,116960.0,116950.0,1.42134014]
[1754718037222,0.36989,116960.0,116950.0,1.0757778]
[1754718037422,0.36989,116960.0,116950.0,1.42334014]
[1754718037819,0.42386,116960.0,116950.0,1.42334014]
[1754718038018,0.43807,116960.0,116950.0,1.48420852]
[1754718039023,0.39117,116960.0,116950.0,1.48420852]
[1754718039217,0.3608,116970.0,116960.0,0.2025703]
[1754718039416,0.3608,116970.0,116960.0,0.55013264]
[1754718039624,0.3608,116970.0,116960.0,0.61100102]
[1754718040226,0.365,116980.0,116970.0,0.202563]
[1754718040422,0.365,116980.0,116970.0,1.41404534]
[1754718041423,0.42112,116980.0,116970.0,1.066483]
[1754718041626,0.42212,116980.0,116970.0,1.066483]
[1754718042020,0.42312,116980.0,116970.0,1.066483]
[1754718042825,0.367,116980.0,116970.0,1.41404534]
[1754718043027,0.367,116980.0,116970.0,1.47491372]
[1754718043231,0.002,116980.0,116970.0,1.47491372]
[1754718045024,0.002,116980.0,116970.0,1.12735138]
[1754718045328,0.002,116980.0,116970.0,1.47491372]
[1754718047026,0.002,116980.0,116970.0,1.12735138]
[1754718047224,0.002,116980.0,116970.0,1.47491372]
[1754718049332,0.002,116980.0,116970.0,1.12735138]
[1754718049628,0.002,116980.0,116970.0,1.47491372]
[1754718050920,0.002,116980.0,116970.0,1.12735138]
[1754718051124,0.002,116980.0,116970.0,1.47491372]
[1754718051421,0.80379234,116980.0,116970.0,1.062643]
[1754718052221,0.45623,116980.0,116970.0,1.062643]
[1754718052823,0.45623,116980.0,116970.0,1.41020534]
[1754718053526,0.45623,116980.0,116970.0,1.062643]
[1754718054425,0.81625234,116980.0,116970.0,1.062643]
[1754718054630,0.90172794,116980.0,116970.0,1.062643]
[1754718054824,0.46869,116980.0,116970.0,1.062643]
[1754718055130,0.45623,116980.0,116970.0,1.062643]
[1754718060328,0.5417058,116980.0,116970.0,1.062643]
[1754718060734,0.88926814,116980.0,116970.0,1.062643]
[1754718060934,0.80379234,116980.0,116970.0,1.062643]
[1754718061233,0.45623,116980.0,116970.0,1.062643]
[1754718062138,0.5541658,116980.0,116970.0,1.062643]
[1754718062436,0.81625234,116980.0,116970.0,1.062643]
[1754718063034,0.46869,116980.0,116970.0,1.062643]
[1754718063337,0.5541657,116980.0,116970.0,1.062643]
[1754718063635,0.46869,116980.0,116970.0,1.062643]
[1754718063843,0.45623,116980.0,116970.0,1.12351138]
[1754718067136,0.45623,116980.0,116970.0,1.062643]
[1754718068235,0.45623,116980.0,116970.0,1.061843]
[1754718068636,0.80379234,116980.0,116970.0,1.061843]
[1754718069639,0.45623,116980.0,116970.0,1.061843]
[1754718069841,0.80379234,116980.0,116970.0,1.061843]
[1754718070440,0.81625234,116980.0,116970.0,0.982873]
[1754718070641,0.81625234,116980.0,116970.0,1.015373]
[1754718070840,0.81625234,116980.0,116970.0,1.060773]
[1754718071342,0.79020234,116980.0,116970.0,1.060773]
[1754718071841,0.45906,116980.0,116970.0,1.060773]
[1754718072942,0.80662234,116980.0,116970.0,1.060773]
[1754718073142,0.80662234,116980.0,116970.0,1.12164138]
[1754718073347,0.45906,116980.0,116970.0,1.12164138]
[1754718081749,0.3628,116980.0,116970.0,1.12164138]
[1754718081948,0.45925,116980.0,116970.0,1.12164138]
[1754718084152,0.45925,116980.0,116970.0,1.060773]
[1754718088058,0.80681234,116980.0,116970.0,1.060773]
[1754718091046,0.80681234,116980.0,116970.0,1.12186462]
[1754718093545,0.80681234,116980.0,116970.0,1.060773]
[1754718093746,0.97777599,116980.0,116970.0,1.12258319]
[1754718093948,0.99023599,116980.0,116970.0,1.12258319]
[1754718095049,0.44828835,116980.0,116970.0,1.12258319]
[1754718095254,0.44283,116980.0,116970.0,1.12258319]
[1754718095553,0.80681234,116980.0,116970.0,1.12258319]
[1754718096654,0.98069788,116980.0,116970.0,1.12258319]
[1754718097253,1.06617328,116980.0,116970.0,0.16948319]
[1754718097456,1.16412163,116980.0,116970.0,0.21796319]
[1754718098056,2.02272163,116980.0,116970.0,0.16948319]
[1754718098356,2.02272163,116980.0,116970.0,0.18511319]
[1754718098660,1.84896806,116980.0,116970.0,0.22736319]
[1754718098854,1.84896806,116980.0,116970.0,0.189353]
[1754718099051,1.84896806,116980.0,116970.0,0.204223]
[1754718100061,1.84896806,116980.0,116970.0,0.189353]
[1754718100458,0.63021375,116980.0,116970.0,0.204223]
[1754718100658,0.97790806,116980.0,116970.0,0.204223]
[1754718102462,0.63021375,116980.0,116970.0,0.204223]
[1754718102662,0.97790806,116980.0,116970.0,0.204223]
[1754718103257,0.99036806,116980.0,116970.0,0.204223]
[1754718103864,0.64267375,116980.0,116970.0,0.204223]
[1754718104251,0.99036806,116980.0,116970.0,0.204223]
[1754718107763,0.64267375,116980.0,116970.0,0.204223]
[1754718107963,0.99036806,116980.0,116970.0,0.189353]
[1754718108261,0.99036806,116980.0,116970.0,0.156853]
[1754718108560,0.99036806,116980.0,116970.0,0.108373]
[1754718109357,0.99036806,116980.0,116970.0,0.085483]
[1754718109562,0.99036806,116980.0,116970.0,0.135033]
[1754718109763,0.99036806,116980.0,116970.0,0.205503]
[1754718110865,0.64267375,116980.0,116970.0,0.205503]
[1754718111069,0.99036806,116980.0,116970.0,0.205503]
[1754718111857,0.99036806,116980.0,116970.0,0.190633]
[1754718112061,0.99036806,116980.0,116970.0,0.109653]
[1754718113568,1.84860806,116980.0,116970.0,0.109653]
[1754718113770,1.50091375,116980.0,116970.0,0.109653]
[1754718113972,1.84860806,116980.0,116970.0,0.109653]
[1754718114966,1.50091375,116980.0,116970.0,0.109653]
[1754718115180,1.84860806,116980.0,116970.0,0.109653]
[1754718116369,1.50091375,116980.0,116970.0,0.109653]
[1754718116575,1.84860806,116980.0,116970.0,0.109653]
[1754718116776,1.50091375,116980.0,116970.0,0.109653]
[1754718117074,1.84860806,116980.0,116970.0,0.109653]
[1754718117673,1.50091375,116980.0,116970.0,0.109653]
[1754718117861,1.84860806,116980.0,116970.0,0.109653]
[1754718118373,1.84860806,116980.0,116970.0,0.085483]
[1754718118670,1.84860806,116980.0,116970.0,0.109653]
[1754718119575,1.84860806,116980.0,116970.0,0.125283]
[1754718120069,1.84860806,116980.0,116970.0,0.157783]
[1754718120671,2.02245121,116980.0,116970.0,0.157783]
[1754718121678,1.50071375,116980.0,116970.0,0.205503]
[1754718121871,2.02225121,116980.0,116970.0,0.205503]
[1754718122681,1.84834907,116980.0,116970.0,0.205503]
[1754718122879,1.50071375,116980.0,116970.0,0.205503]
[1754718123179,1.84834907,116980.0,116970.0,0.205503]
[1754718123378,1.84830907,116980.0,116970.0,0.205503]
[1754718123779,1.86611144,116980.0,116970.0,0.205503]
[1754718124279,1.00811144,116980.0,116970.0,0.205503]
[1754718124478,1.86607144,116980.0,116970.0,0.205503]
[1754718124679,1.50597512,116980.0,116970.0,0.205503]
[1754718124883,1.31721,116980.0,116970.0,0.55313832]
[1754718125380,1.4026844,116980.0,116970.0,0.205503]
[1754718127684,1.75031972,116980.0,116970.0,0.205503]
[1754718128577,1.76273972,116980.0,116970.0,0.205503]
[1754718130385,1.67726532,116980.0,116970.0,0.205503]
[1754718130787,0.81934532,116980.0,116970.0,0.205503]
[1754718130986,1.32951,116980.0,116970.0,0.205503]
[1754718131283,1.67714532,116980.0,116970.0,0.205503]
[1754718131790,1.67710532,116980.0,116970.0,0.205503]
[1754718132084,0.81934532,116980.0,116970.0,0.205503]
[1754718132285,1.67710532,116980.0,116970.0,0.205503]
[1754718133779,1.67710532,116980.0,116970.0,0.26661319]
[1754718134177,1.67710532,116980.0,116970.0,0.18639319]
[1754718134587,1.67710532,116980.0,116970.0,0.25320319]
[1754718134783,1.67710532,116980.0,116970.0,0.26810319]
[1754718136084,1.76257962,116980.0,116970.0,0.26810319]
[1754718136285,1.84806797,116980.0,116970.0,0.085483]
[1754718136783,1.84806797,116980.0,116970.0,0.108733]
[1754718137184,1.41479835,116980.0,116970.0,0.156743]
[1754718137391,1.76243367,116980.0,116970.0,0.205993]
[1754718138687,0.90483367,116980.0,116970.0,0.205993]
[1754718138887,1.31681,116980.0,116970.0,0.55362832]
[1754718139285,0.45925,116980.0,116970.0,0.55362832]
[1754718139492,0.45925,116980.0,116970.0,0.205993]
[1754718139984,0.45925,116980.0,116970.0,0.26710319]
[1754718144694,0.67061087,116980.0,116970.0,0.52780406]
[1754718144994,0.71917087,116980.0,116970.0,0.52780406]
[1754718145293,0.71917087,116980.0,116970.0,0.26710319]
[1754718145594,0.71917087,116980.0,116970.0,0.52780406]
[1754718146390,0.73163087,116980.0,116970.0,0.52780406]
[1754718146793,0.47093,116980.0,116970.0,0.52780406]
[1754718147092,0.73163087,116980.0,116970.0,0.52780406]
[1754718148598,0.47093,116980.0,116970.0,0.52780406]
[1754718148798,0.73163087,116980.0,116970.0,0.52780406]
[1754718152093,0.73163087,116980.0,116970.0,0.26710319]
[1754718152302,0.47093,116980.0,116970.0,0.52780406]
[1754718152500,0.73163087,116980.0,116970.0,0.52780406]
[1754718153202,0.47093,116980.0,116970.0,0.52780406]
[1754718153500,0.73163087,116980.0,116970.0,0.52780406]
[1754718154303,0.73163087,116980.0,116970.0,0.26710319]
[1754718154507,0.73163087,116980.0,116970.0,0.52780406]
[1754718155400,0.47093,116980.0,116970.0,0.52780406]
[1754718155597,0.73163087,116980.0,116970.0,0.52780406]
[1754718156606,0.73163087,116980.0,116970.0,0.46669387]
[1754718159506,0.81710527,116980.0,116970.0,0.46669387]
[1754718160102,0.5564044,116980.0,116970.0,0.46669387]
[1754718160303,0.81710527,116980.0,116970.0,0.46669387]
[1754718161197,0.81710527,116980.0,116970.0,0.205993]
[1754718161398,0.81710527,116980.0,116970.0,0.46669387]
[1754718164303,0.5564044,116980.0,116970.0,0.46669387]
[1754718164500,0.81710527,116980.0,116970.0,0.46669387]
[1754718165603,0.81710527,116980.0,116970.0,0.205993]
[1754718165804,0.5564044,116980.0,116970.0,0.46669387]
[1754718166007,0.81710527,116980.0,116970.0,0.46669387]
[1754718166808,0.81710527,116980.0,116970.0,0.108733]
[1754718167006,0.81710527,116980.0,116970.0,0.36943387]
[1754718167307,1.07780614,116980.0,116970.0,0.36943387]
[1754718168307,1.09644989,116980.0,116970.0,0.36943387]
[1754718168508,1.07780614,116980.0,116970.0,0.36943387]
[1754718168809,1.07780614,116980.0,116970.0,0.38575387]
[1754718169013,1.07780614,116980.0,116970.0,0.46478387]
[1754718169906,1.07780614,116980.0,116970.0,0.39482387]
[1754718170104,0.81710527,116980.0,116970.0,0.38575387]
[1754718170505,1.07780614,116980.0,116970.0,0.38575387]
[1754718171109,1.07780614,116980.0,116970.0,0.46478387]
[1754718171707,1.07780614,116980.0,116970.0,0.204083]
[1754718171911,1.07780614,116980.0,116970.0,0.46478387]
[1754718174109,0.81710527,116980.0,116970.0,0.46478387]
[1754718174809,0.81710527,116980.0,116970.0,0.204083]
[1754718175113,0.81710527,116980.0,116970.0,0.45011387]
[1754718175511,0.5564044,116980.0,116970.0,0.45011387]
[1754718175713,0.81710527,116980.0,116970.0,0.45011387]
[1754718175914,0.81710527,116980.0,116970.0,0.189413]
[1754718176110,0.81710527,116980.0,116970.0,0.46478387]
[1754718176309,0.5564044,116980.0,116970.0,0.46478387]
[1754718176510,0.81710527,116980.0,116970.0,0.204083]
[1754718176808,0.81710527,116980.0,116970.0,0.46478387]
[1754718177116,0.81710527,116980.0,116970.0,0.204083]
[1754718177307,0.81710527,116980.0,116970.0,0.46478387]
[1754718177609,0.81710527,116980.0,116970.0,0.204083]
[1754718177805,0.81710527,116980.0,116970.0,0.46478387]
[1754718178309,0.81710527,116980.0,116970.0,0.204083]
[1754718178716,0.81710527,116980.0,116970.0,0.46478387]
[1754718178904,0.81710527,116980.0,116970.0,0.36943387]
[1754718179212,0.81710527,116980.0,116970.0,0.36964387]
[1754718179409,0.81710527,116980.0,116970.0,0.38596387]
[1754718179609,1.07780614,116980.0,116970.0,0.46499387]
[1754718180214,1.07780614,116980.0,116970.0,0.204293]
[1754718180513,1.07780614,116980.0,116970.0,0.46499387]
[1754718180917,1.16329449,116980.0,116970.0,0.157323]
[1754718181117,1.16329449,116980.0,116970.0,0.134333]
[1754718181318,0.64189275,116980.0,116970.0,0.39503387]
[1754718181713,0.90259362,116980.0,116970.0,0.42733387]
[1754718182210,1.16329449,116980.0,116970.0,0.42733387]
[1754718183117,1.16329449,116980.0,116970.0,0.45032387]
[1754718183414,1.16329449,116980.0,116970.0,0.46499387]
[1754718185417,1.16329449,116980.0,116970.0,0.36964277]
[1754718185615,0.64189275,116980.0,116970.0,0.36964277]
[1754718185816,1.16329449,116980.0,116970.0,0.36964277]
[1754718186016,1.16329449,116980.0,116970.0,0.38596277]
[1754718186320,0.64189275,116980.0,116970.0,0.45032277]
[1754718186618,1.16329449,116980.0,116970.0,0.46469277]
[1754718187805,0.90259362,116980.0,116970.0,0.46469277]
[1754718190219,0.90259362,116980.0,116970.0,0.2039919]
[1754718190407,0.90259362,116980.0,116970.0,0.46469277]
[1754718190606,1.16329449,116980.0,116970.0,0.46469277]
[1754718190815,0.80249449,116980.0,116970.0,0.46469277]
[1754718191017,1.52409449,116980.0,116970.0,0.46469277]
[1754718193122,1.52409449,116980.0,116970.0,0.2039919]
[1754718193420,1.52409449,116980.0,116970.0,0.46469277]
[1754718194222,1.26339362,116980.0,116970.0,0.46469277]
[1754718195015,1.00269275,116980.0,116970.0,0.46469277]
[1754718195227,1.00269275,116980.0,116970.0,0.2039919]
[1754718195423,1.26339362,116980.0,116970.0,0.46469277]
[1754718195620,1.26339362,116980.0,116970.0,0.2039919]
[1754718195823,1.26339362,116980.0,116970.0,0.46469277]
[1754718196017,1.25093362,116980.0,116970.0,0.41802277]
[1754718196222,0.53376275,116980.0,116970.0,0.46730277]
[1754718196419,0.53376275,116980.0,116970.0,0.2066019]
[1754718196621,0.4799144,116980.0,116970.0,0.46730277]
[1754718196819,0.75025527,116980.0,116970.0,0.46730277]
[1754718197019,0.76465527,116980.0,116970.0,0.46730277]
[1754718197218,0.78617527,116980.0,116970.0,0.46730277]
[1754718198524,0.5254744,116980.0,116970.0,0.46730277]
[1754718198720,0.71861527,116980.0,116970.0,0.46730277]
[1754718199124,0.4579144,116980.0,116970.0,0.46730277]
[1754718199325,0.75025527,116980.0,116970.0,0.46730277]
[1754718200025,0.78617527,116980.0,116970.0,0.46730277]
[1754718200225,0.5254744,116980.0,116970.0,0.46730277]
[1754718200527,0.78617527,116980.0,116970.0,0.46730277]
[1754718200828,0.5254744,116980.0,116970.0,0.46730277]
[1754718201525,0.44,116980.0,116970.0,0.46730277]
[1754718201927,0.5254745,116980.0,116970.0,0.46730277]
[1754718203027,0.44,116980.0,116970.0,0.46730277]
[1754718204129,0.45603,116980.0,116970.0,0.46730277]
[1754718204326,0.5415046,116980.0,116970.0,0.46730277]
[1754718204634,0.80220547,116980.0,116970.0,0.2066019]
[1754718204837,0.80220547,116980.0,116970.0,0.46730277]
[1754718205334,0.81466547,116980.0,116970.0,0.46730277]
[1754718207734,0.5539646,116980.0,116970.0,0.46730277]
[1754718208033,0.81466547,116980.0,116970.0,0.46730277]
[1754718210737,0.5539646,116980.0,116970.0,0.2066019]
[1754718210928,0.81466547,116980.0,116970.0,0.46730277]
[1754718211430,1.17546547,116980.0,116970.0,0.36964277]
[1754718211736,1.17546547,116980.0,116970.0,0.38563277]
[1754718211932,0.9147646,116980.0,116970.0,0.46536277]
[1754718212135,1.17546547,116980.0,116970.0,0.46536277]
[1754718216132,1.17546547,116980.0,116970.0,0.2046619]
[1754718216328,0.3628,116980.0,116970.0,0.72648364]
[1754718216530,0.002,116980.0,116970.0,0.72648364]
[1754718216736,0.002,116980.0,116970.0,0.99138451]
[1754718216936,0.002,116980.0,116970.0,0.80711225]
[1754718217339,0.002,116980.0,116970.0,1.09148364]
[1754718217741,0.002,116980.0,116970.0,1.16791225]
[1754718218240,0.002,116980.0,116970.0,1.09148364]
[1754718220139,0.42758892,116990.0,116970.0,1.69411981]
[1754718220345,0.42758892,116990.0,116980.0,1.52961634]
[1754718222234,0.42958892,116990.0,116980.0,1.52961634]
[1754718222437,0.002,116990.0,116980.0,1.52961634]
[1754718222738,0.002,116990.0,116980.0,2.15111721]
[1754718223036,0.3648,117000.0,116990.0,0.2038073]
[1754718223237,0.43303933,117000.0,116990.0,0.72520904]
[1754718223845,0.43303933,117000.0,116990.0,0.46450817]
[1754718224043,0.47531933,117000.0,116990.0,0.46450817]
[1754718224243,0.51196933,117000.0,116990.0,0.46450817]
[1754718224446,0.51196933,117000.0,116990.0,0.46650817]
[1754718225335,0.51196933,117000.0,116990.0,0.2058073]
[1754718225838,0.51196933,117000.0,116990.0,0.46650817]
[1754718227641,0.51196933,117000.0,116990.0,0.46950817]
[1754718228141,0.52716933,117000.0,116990.0,0.47050817]
[1754718228942,0.52716933,117000.0,116990.0,0.46950817]
[1754718229143,0.52716933,117000.0,116990.0,0.47250817]
[1754718229338,0.52716933,117000.0,116990.0,0.73320904]
[1754718230148,0.52716933,117000.0,116990.0,0.47250817]
[1754718230449,0.52716933,117000.0,116990.0,0.73320904]
[1754718231250,0.52716933,117000.0,116990.0,0.47250817]
[1754718231542,0.8023302,117000.0,116990.0,1.30839817]
[1754718231739,0.8023302,117000.0,116990.0,1.32318817]
[1754718232443,0.54162933,117000.0,116990.0,1.32318817]
[1754718232748,0.54162933,117000.0,116990.0,1.0584873]
[1754718232947,0.54162933,117000.0,116990.0,1.0564873]
[1754718233241,0.54162933,117000.0,116990.0,1.31718817]
[1754718233447,0.52716933,117000.0,116990.0,1.31718817]
[1754718234846,0.52716933,117000.0,116990.0,1.31618817]
[1754718235046,0.52716933,117000.0,116990.0,1.31818817]
[1754718235744,0.52716933,117000.0,116990.0,1.0574873]
[1754718236044,0.52716933,117000.0,116990.0,1.31918817]
[1754718236346,0.52716933,117000.0,116990.0,1.32118817]
[1754718238150,0.43303933,117000.0,116990.0,1.0604873]
[1754718238444,0.52716933,117000.0,116990.0,1.32118817]
[1754718238651,0.54162933,117000.0,116990.0,1.32118817]
[1754718239149,0.52716933,117000.0,116990.0,1.32118817]
[1754718240451,0.52716933,117000.0,116990.0,1.0604873]
[1754718240743,0.52716933,117000.0,116990.0,0.2098073]
[1754718240744,0.7878702,117000.0,116990.0,0.2098073]
[1754718240949,1.2339651,117000.0,116990.0,0.1146373]
[1754718241155,1.2339651,117000.0,116990.0,0.9641173]
[1754718241343,1.2339651,117000.0,116990.0,0.1146373]
[1754718241543,1.1445048,117000.0,116990.0,0.1146373]
[1754718241745,0.62310306,117000.0,116990.0,0.37533817]
[1754718241946,0.96926423,117000.0,116990.0,0.37533817]
[1754718242149,0.96926423,117000.0,116990.0,0.37433817]
[1754718242345,0.96926423,117000.0,116990.0,0.1116373]
[1754718242545,0.96926423,117000.0,116990.0,0.37233817]
[1754718242745,1.05608058,117000.0,116990.0,0.1116373]
[1754718243856,0.62310306,117000.0,116990.0,0.1590373]
[1754718244046,0.62310306,117000.0,116990.0,0.2068073]
[1754718244246,0.62310306,117000.0,116990.0,0.1920173]
[1754718244455,0.62310306,117000.0,116990.0,0.1266573]
[1754718244657,1.05608058,117000.0,116990.0,0.0884673]
[1754718245155,1.15014441,117000.0,116990.0,0.0884676]
[1754718245452,1.14594441,117000.0,116990.0,0.0884676]
[1754718249158,0.79842719,117000.0,116990.0,0.0884676]
[1754718249359,1.14594441,117000.0,116990.0,0.1113576]
[1754718249660,1.06048411,117000.0,116990.0,0.1113576]
[1754718250050,1.14594441,117000.0,116990.0,0.1113576]
[1754718250250,1.06048411,117000.0,116990.0,0.1113576]